bitfinex/quotes_ETHUSD_20240530
["timestamp","ask_amount","ask_price","bid_price","bid_amount"]
[1717052309262,2.89985222,3745.5,3743.9,1.60259]
[1717052309458,1.60205,3745.2,3743.3,1.60283]
[1717052309663,2.8051,3745.1,3743.4,1.29789222]
[1717052309865,2.2551,3744.9,3743.4,1.29789222]
[1717052310556,2.3351,3744.7,3743.4,1.29789222]
[1717052310760,2.3351,3744.6,3743.4,1.29789222]
[1717052311186,2.3351,3744.6,3743.3,1.60283]
[1717052313571,2.3351,3744.6,3743.4,1.29789222]
[1717052313771,2.3351,3744.6,3743.5,0.29007222]
[1717052315078,2.3351,3744.6,3743.6,2.90060222]
[1717052316407,2.3351,3744.6,3743.6,1.60271]
[1717052317398,2.3351,3744.6,3742.4,3.0]
[1717052317610,2.3351,3744.6,3743.0,1.60296]
[1717052317821,2.2741,3744.4,3743.1,1.29789222]
[1717052318043,2.2969,3744.3,3743.1,1.29789222]
[1717052318252,2.2969,3744.2,3743.1,1.29789222]
[1717052318682,2.2969,3744.1,3743.1,1.29789222]
[1717052319083,2.2969,3744.1,3743.0,1.60296]
[1717052319449,2.2969,3743.9,3743.0,1.60296]
[1717052319670,2.2934,3743.8,3743.0,1.60296]
[1717052320146,2.2913,3743.7,3743.0,1.60296]
[1717052321088,2.2913,3743.7,3743.1,1.29789222]
[1717052321288,2.2913,3743.7,3743.2,1.60289]
[1717052321513,2.2913,3743.7,3743.3,1.58797044]
[1717052322640,2.2913,3743.7,3743.2,1.60289]
[1717052323202,2.2913,3743.7,3742.6,1.60312]
[1717052325215,2.2913,3743.7,3742.0,1.60338]
[1717052325406,2.3296,3743.6,3742.0,1.60338]
[1717052325609,2.3296,3743.6,3742.1,1.29789222]
[1717052325610,2.3296,3743.5,3742.1,1.29789222]
[1717052325823,2.4689,3743.4,3742.1,1.29789222]
[1717052327089,2.5327,3743.3,3742.1,1.29789222]
[1717052327291,2.5327,3743.1,3742.1,1.29789222]
[1717052328734,2.5327,3743.1,3742.8,1.60306]
[1717052328938,2.5327,3743.1,3742.8,2.90095222]
[1717052330111,2.5327,3743.1,3742.8,3.19104744]
[1717052330716,2.5327,3743.1,3743.0,1.60299]
[1717052331038,2.5327,3743.1,3743.0,2.90088222]
[1717052332063,2.7175,3744.4,3743.5,1.60277]
[1717052332531,2.7175,3744.4,3743.8,1.60263]
[1717052333558,2.7175,3744.4,3743.7,1.60269]
[1717052334661,2.7175,3744.4,3743.7,1.762959]
[1717052334818,2.7175,3744.4,3743.9,1.6026]
[1717052336465,2.7175,3744.4,3743.3,1.60282]
[1717052336671,2.7175,3744.4,3743.7,1.60269]
[1717052339254,0.57789823,3744.3,3743.7,1.60269]
[1717052340274,2.7175,3744.4,3743.7,1.60269]
[1717052341438,2.7175,3744.4,3743.9,1.60257]
[1717052341673,2.7175,3744.4,3744.1,1.60251]
[1717052347235,2.7175,3744.4,3744.3,1.60243]
[1717052347444,14.315,3745.9,3744.3,1.60243]
[1717052347445,2.66,3745.4,3744.3,2.90032222]
[1717052347686,3.23780455,3745.4,3744.3,2.90032222]
[1717052348681,3.0,3745.3,3744.3,2.90032222]
[1717052349038,2.66,3745.4,3744.4,1.29789222]
[1717052350040,2.66,3745.4,3744.9,1.60214]
[1717052350340,2.66,3745.4,3745.0,1.29789222]
[1717052350681,2.66,3745.4,3745.1,1.60208]
[1717052350850,2.66,3745.4,3745.1,3.18996944]
[1717052351186,2.5065,3746.0,3745.4,1.60194]
[1717052354756,2.5065,3746.0,3744.6,3.5573]
[1717052355058,2.5035,3746.7,3745.4,1.29789222]
[1717052355257,2.5035,3746.7,3745.5,1.29789222]
[1717052356864,3.0,3746.6,3745.5,1.29789222]
[1717052358500,3.0,3746.6,3745.1,1.60208]
[1717052358661,3.0,3746.6,3745.2,1.29789222]
[1717052359755,3.0,3746.6,3745.5,1.60192]
[1717052360104,3.0,3746.6,3745.6,1.29789222]
[1717052360254,3.0,3746.6,3745.7,0.28998122]
[1717052360456,3.0,3746.6,3745.8,1.29789222]
[1717052362689,3.0,3746.6,3746.0,1.60169]
[1717052362998,2.6245,3747.4,3746.3,1.60154]
[1717052363199,3.0,3747.3,3746.3,1.60154]
[1717052363607,2.6245,3747.4,3746.6,1.60143]
[1717052363903,2.6245,3747.4,3746.6,2.89932222]
[1717052364273,2.6245,3747.4,3746.6,1.60143]
[1717052364618,0.0053,3747.5,3746.6,1.60143]
[1717052366429,2.7057,3747.4,3746.0,1.60166]
[1717052366727,1.60122,3747.2,3746.0,1.60166]
[1717052366897,3.47664826,3747.2,3746.0,1.60166]
[1717052367088,4.12753604,3747.1,3746.0,1.60166]
[1717052367290,0.57753604,3747.0,3745.4,1.60192]
[1717052367528,0.55,3746.9,3745.4,2.89981222]
[1717052367729,0.55,3746.9,3745.4,3.18979344]
[1717052368513,0.55,3746.9,3745.4,1.89190122]
[1717052369088,1.84789222,3746.9,3745.4,1.89190122]
[1717052369516,0.55,3746.9,3745.4,1.89190122]
[1717052372487,0.55,3746.9,3745.8,1.60175]
[1717052372787,0.57753605,3747.0,3745.4,0.28998122]
[1717052372788,0.57753605,3747.0,3746.1,1.60162]
[1717052375542,2.6751,3746.9,3746.1,1.60162]
[1717052375695,3.57753605,3746.8,3746.1,1.60162]
[1717052375887,0.57753605,3746.7,3746.1,1.60162]
[1717052376238,3.0,3746.8,3746.1,1.60162]
[1717052376544,3.0,3746.8,3746.3,1.60154]
[1717052377295,0.57748204,3746.7,3746.3,1.60154]
[1717052377497,0.57748204,3746.7,3745.8,1.60178]
[1717052378237,0.57754304,3746.7,3745.4,0.28998122]
[1717052378423,0.55,3746.6,3745.4,0.28998122]
[1717052378588,2.6773,3746.4,3745.3,1.60199]
[1717052378792,4.12754304,3746.3,3745.3,1.60199]
[1717052379133,4.12754304,3746.3,3744.8,1.60221]
[1717052379134,0.57754304,3746.2,3744.8,1.60221]
[1717052379332,0.55,3746.1,3744.8,1.60221]
[1717052379924,2.7184,3745.9,3744.8,1.60221]
[1717052380132,2.7184,3745.6,3744.2,1.60244]
[1717052380442,1.12754304,3745.5,3744.2,1.60244]
[1717052380631,4.12754304,3745.5,3744.2,1.60244]
[1717052380940,0.57754304,3745.4,3744.2,1.60244]
[1717052381955,0.55,3745.3,3744.2,1.60244]
[1717052382279,0.55,3745.3,3743.6,1.6027]
[1717052382280,2.7812,3745.1,3743.6,1.6027]
[1717052382400,1.12754304,3745.0,3743.6,1.6027]
[1717052382605,4.12754304,3745.0,3743.6,1.6027]
[1717052383059,0.57754304,3744.9,3743.6,1.6027]
[1717052383203,0.57754304,3744.9,3743.6,1.76297]
[1717052383204,0.55,3744.8,3743.6,1.76297]
[1717052383599,1.12754304,3744.8,3743.6,1.76297]
[1717052384423,0.55,3744.8,3743.6,1.76297]
[1717052384652,1.12784974,3744.8,3743.6,1.76297]
[1717052384859,1.12784974,3744.8,3743.7,0.176297]
[1717052385210,0.55,3744.8,3743.7,0.176297]
[1717052389152,0.55,3744.8,3743.6,1.6027]
[1717052390350,4.5535,3744.1,3742.4,1.60322]
[1717052390639,4.60258,3744.0,3742.4,1.60322]
[1717052390841,5.15258,3744.0,3742.4,1.60322]
[1717052391200,0.4127543,3743.9,3742.5,0.160322]
[1717052391358,0.55,3743.8,3742.5,0.160322]
[1717052392262,0.4127543,3743.9,3742.5,0.160322]
[1717052393954,0.55,3743.8,3742.5,0.160322]
[1717052394517,3.0,3744.0,3742.9,1.60301]
[1717052395036,2.5985,3744.1,3743.0,1.29789222]
[1717052395855,2.666,3744.5,3743.1,1.60293]
[1717052396061,2.666,3744.5,3743.1,2.90082222]
[1717052396372,3.0,3744.4,3743.1,2.90082222]
[1717052396519,3.0,3744.4,3743.1,3.19090444]
[1717052398667,6.33228706,3745.4,3743.7,1.955]
[1717052398960,6.33228706,3745.4,3743.8,1.29789222]
[1717052399930,6.33228706,3745.4,3744.3,1.60243]
[1717052400135,6.33228706,3745.4,3744.4,1.45813522]
[1717052400445,6.33228706,3745.4,3743.7,1.955]
[1717052400647,8.88338706,3746.5,3744.5,1.29789222]
[1717052400818,8.88338706,3746.5,3745.0,1.60211]
[1717052400819,13.73777928,3746.5,3745.0,1.60211]
[1717052401760,10.83838706,3746.5,3745.0,2.90000222]
[1717052402872,2.6321,3746.2,3744.1,1.60248]
[1717052403018,5.08989222,3746.4,3743.5,1.60274]
[1717052403019,2.6321,3745.2,3743.5,1.60274]
[1717052403218,1.955,3744.9,3743.5,1.60274]
[1717052403459,0.32528922,3744.8,3743.5,1.60274]
[1717052403719,0.55,3744.7,3743.5,1.60274]
[1717052403951,1.0,3746.9,3744.1,1.60251]
[1717052404266,3.0,3745.1,3744.1,1.60251]
[1717052404555,2.5646,3745.7,3744.1,1.958261]
[1717052404758,3.0,3745.6,3744.1,1.958261]
[1717052405133,1.60194,3745.5,3744.1,1.60251]
[1717052405335,1.60194,3745.5,3743.5,1.955]
[1717052405336,3.4776144,3745.5,3743.5,1.60275]
[1717052405514,3.57778218,3745.4,3743.7,1.60267]
[1717052405718,1.60205,3745.2,3743.7,2.90056222]
[1717052405968,0.55,3745.1,3743.7,1.60267]
[1717052406151,0.57298415,3745.0,3743.8,0.160267]
[1717052406869,3.0,3745.1,3744.1,1.60249]
[1717052407016,2.5646,3745.7,3744.1,2.90038222]
[1717052407221,3.0,3745.0,3744.1,2.90038222]
[1717052407461,3.0,3745.6,3744.1,2.90038222]
[1717052407664,0.57776136,3745.5,3744.1,2.90038222]
[1717052407968,0.57776136,3745.5,3744.4,1.60238]
[1717052408325,0.57772977,3745.5,3744.4,2.90027222]
[1717052408529,0.57772977,3745.7,3744.9,1.60214]
[1717052408782,6.33228706,3745.8,3744.9,1.60214]
[1717052409249,0.57765469,3745.7,3744.9,1.60214]
[1717052411072,3.0,3745.7,3744.9,1.60214]
[1717052412257,1.29789222,3745.6,3744.3,1.60243]
[1717052412457,2.5482,3745.5,3744.3,1.60243]
[1717052412654,3.55,3745.4,3744.3,1.60243]
[1717052412900,0.5778041,3745.3,3744.3,1.60243]
[1717052413075,0.5778041,3745.3,3742.8,5.605]
[1717052413076,0.55,3745.2,3743.7,1.60265]
[1717052413256,1.60211,3745.1,3743.7,1.60265]
[1717052413602,0.55,3745.0,3743.7,1.60265]
[1717052413806,1.60222,3744.8,3743.7,1.60265]
[1717052414036,0.95279163,3744.7,3743.7,1.60265]
[1717052414356,2.7812,3744.6,3743.7,1.60265]
[1717052414505,1.1278041,3744.5,3743.7,1.60265]
[1717052414706,4.1278041,3744.5,3743.7,1.60265]
[1717052414906,3.55,3744.5,3743.7,1.60265]
[1717052415234,4.02690138,3744.5,3743.7,1.60265]
[1717052415729,0.57788643,3744.4,3743.0,1.60295]
[1717052415942,0.55,3744.3,3743.0,1.60295]
[1717052417433,3.45032222,3744.3,3743.0,1.60295]
[1717052417660,4.87577865,3744.2,3743.0,1.60295]
[1717052417936,1.53067806,3744.1,3743.0,1.60295]
[1717052418540,2.5813,3743.9,3742.4,1.60321]
[1717052418744,3.55,3743.8,3742.4,1.60321]
[1717052419351,0.57804565,3743.7,3742.4,1.60321]
[1717052419519,0.57804565,3743.7,3742.6,1.60315]
[1717052419720,0.57804565,3743.7,3742.6,1.89325422]
[1717052420042,3.55,3743.8,3742.6,1.89325422]
[1717052420352,0.57802703,3743.7,3742.6,1.89325422]
[1717052420561,3.55,3743.8,3742.6,1.94668447]
[1717052420919,3.0,3743.8,3742.8,1.60304]
[1717052421240,3.47690138,3743.8,3742.8,1.60304]
[1717052421496,3.47690138,3743.8,3742.2,1.6033]
[1717052421775,1.12803373,3743.7,3742.5,1.60319]
[1717052424077,1.12803373,3743.7,3741.9,1.60342]
[1717052424078,2.90066222,3743.6,3741.9,1.60342]
[1717052424376,1.60292,3743.2,3741.9,1.60342]
[1717052424592,0.55,3743.1,3741.9,1.60342]
[1717052424792,0.57803373,3743.1,3742.2,1.6033]
[1717052425079,0.57803373,3743.1,3742.3,0.29011922]
[1717052425247,3.57814725,3743.3,3742.3,0.29011922]
[1717052425452,3.0,3743.3,3742.3,0.29011922]
[1717052426037,3.0,3743.3,3742.4,1.60322]
[1717052426665,3.0,3743.3,3742.7,1.6031]
[1717052426883,9.08228706,3744.0,3743.1,1.60294]
[1717052427095,0.57802416,3743.9,3743.1,2.90083222]
[1717052427252,6.33228706,3744.0,3742.8,0.29009922]
[1717052427444,6.33228706,3744.0,3742.8,1.60303]
[1717052427766,0.57796713,3743.9,3742.8,1.60303]
[1717052428291,6.33228706,3744.0,3742.9,1.29789222]
[1717052428438,3.0,3743.9,3742.8,1.60303]
[1717052429357,5.55984222,3743.8,3742.3,1.60328]
[1717052429582,3.55,3743.7,3742.3,1.60328]
[1717052429987,0.30926088,3744.9,3743.4,1.29789222]
[1717052430213,0.26197974,3746.0,3741.6,2.792]
[1717052430214,2.42770674,3744.8,3744.5,1.60233]
[1717052430337,8.99158706,3746.3,3745.3,1.602]
[1717052430540,2.42642116,3746.2,3745.3,1.602]
[1717052430767,2.93499328,3746.2,3745.3,1.602]
[1717052430974,0.50857212,3746.2,3745.3,1.602]
[1717052432038,2.7842,3746.9,3745.5,1.60191]
[1717052432269,2.42609625,3746.8,3745.6,1.29789222]
[1717052432485,2.7842,3746.9,3745.6,1.29789222]
[1717052432687,0.27842,3746.8,3745.6,1.29789222]
[1717052432999,0.27842,3746.8,3744.7,2.604]
[1717052433145,0.27842,3746.8,3744.8,1.29789222]
[1717052433347,1.29789222,3746.7,3744.8,1.29789222]
[1717052433691,0.27842,3746.8,3744.8,1.29789222]
[1717052433892,0.306262,3746.7,3744.9,0.65162922]
[1717052434074,0.306262,3746.7,3745.7,1.6018]
[1717052434463,1.60415422,3746.7,3745.0,1.6021]
[1717052434679,0.55,3746.6,3745.0,1.6021]
[1717052435446,3.83399222,3746.5,3745.0,1.6021]
[1717052435691,3.57343101,3746.4,3745.0,1.6021]
[1717052435863,0.55,3746.3,3745.0,1.6021]
[1717052436197,1.60163,3746.2,3745.0,1.6021]
[1717052436555,1.60163,3746.2,3744.0,2.7494]
[1717052436556,0.55,3746.1,3744.4,1.60237]
[1717052437065,3.57343101,3746.4,3744.9,1.60215]
[1717052437294,3.57343101,3746.4,3744.0,2.7494]
[1717052437295,3.57343101,3746.4,3745.1,1.60205]
[1717052438610,1.60136,3746.9,3745.3,1.60199]
[1717052438808,2.5087,3747.0,3745.7,1.6018]
[1717052439011,6.33228706,3747.3,3746.0,1.6017]
[1717052439172,6.33228706,3747.3,3746.3,1.60156]
[1717052439372,0.0053,3747.5,3746.3,2.89945222]
[1717052440003,0.0053,3747.5,3746.3,1.60156]
[1717052440203,0.0053,3747.5,3746.3,2.89945222]
[1717052440607,0.0053,3747.5,3746.4,0.05337491]
[1717052440783,0.0053,3747.5,3746.5,1.60148]
[1717052440984,0.0053,3747.5,3746.6,1.29789222]
[1717052441911,0.0053,3747.5,3746.7,1.6014]
[1717052442209,0.0053,3747.5,3746.8,1.29789222]
[1717052443008,0.0053,3747.5,3746.9,1.60131]
[1717052443210,0.0053,3747.5,3747.0,1.29789222]
[1717052443714,0.0053,3747.5,3747.1,1.60121]
[1717052443870,0.0053,3747.5,3747.3,1.60115]
[1717052444079,0.0053,3747.5,3747.4,1.29789222]
[1717052447100,0.0053,3747.5,3747.4,1.35124703]
[1717052447409,0.0053,3747.5,3747.4,7.13709222]
[1717052447611,1.068971,3749.0,3747.4,7.13709222]
[1717052447913,1.068971,3749.0,3748.3,1.29789222]
[1717052448302,1.068971,3749.0,3748.5,1.6006]
[1717052448487,1.068971,3749.0,3748.6,1.29789222]
[1717052449235,1.068971,3749.0,3748.7,1.60054]
[1717052449517,1.068971,3749.0,3748.8,1.29789222]
[1717052449828,1.068971,3749.0,3748.9,0.28984322]
[1717052449971,1.068971,3749.0,3748.9,1.58773544]
[1717052451218,1.068971,3749.0,3748.4,2.604]
[1717052451558,1.068971,3749.0,3746.7,1.60137]
[1717052451559,1.60049,3748.9,3747.4,1.60109]
[1717052451827,4.49506994,3749.0,3748.0,1.60083]
[1717052451828,1.068971,3749.0,3748.0,1.60083]
[1717052452024,1.068971,3749.0,3748.1,0.160083]
[1717052452891,1.068971,3749.0,3748.2,1.29789222]
[1717052453085,1.068971,3749.0,3747.4,1.60108]
[1717052453286,1.068971,3749.0,3747.5,1.29789222]
[1717052453287,1.60047,3748.9,3747.5,1.29789222]
[1717052453597,7.14397,3748.9,3746.8,4.20533]
[1717052453801,1.60066,3748.5,3746.9,1.98963522]
[1717052454005,1.60074,3748.3,3746.9,1.29789222]
[1717052454213,1.60074,3748.3,3746.8,1.60133]
[1717052454512,1.60074,3748.3,3746.0,2.6328]
[1717052454513,1.60086,3748.0,3746.2,1.60159]
[1717052454819,1.60086,3748.0,3746.3,1.29789222]
[1717052454973,0.215086,3747.9,3746.4,0.28994822]
[1717052455172,0.215086,3747.9,3746.5,1.29789222]
[1717052456073,1.60103,3747.6,3745.5,1.60191]
[1717052456568,1.60112,3747.4,3745.5,1.60191]
[1717052456816,0.215112,3747.3,3745.6,0.160191]
[1717052457013,0.215112,3747.3,3745.6,1.45808322]
[1717052460581,1.60121,3747.2,3745.6,1.45808322]
[1717052460783,2.6829,3746.8,3745.5,1.60191]
[1717052461021,2.6829,3746.8,3745.5,2.89980222]
[1717052461232,3.0,3746.7,3745.5,2.89980222]
[1717052461394,3.0,3746.7,3744.2,3.0]
[1717052461395,2.15145,3746.6,3744.9,1.60217]
[1717052461690,2.15145,3746.6,3745.0,1.45810922]
[1717052461892,3.0,3746.7,3745.3,1.60197]
[1717052462080,6.33228706,3747.2,3745.9,2.89963222]
[1717052462283,2.649,3747.7,3746.3,1.60155]
[1717052462532,7.93322706,3747.8,3746.6,1.6014]
[1717052462533,6.33228706,3747.8,3746.6,1.6014]
[1717052462853,6.33228706,3748.2,3746.7,0.1654768]
[1717052463388,6.33228706,3748.2,3746.8,1.60132]
[1717052463676,8.92808706,3749.6,3747.5,1.29789222]
[1717052463805,8.92808706,3749.6,3747.9,1.60088]
[1717052463806,2.17750968,3749.5,3747.9,1.60088]
[1717052464000,2.17750968,3749.5,3748.0,1.29789222]
[1717052465505,2.17744459,3749.5,3748.0,1.29789222]
[1717052465896,2.17744459,3749.5,3748.1,1.60077]
[1717052466107,2.17744459,3749.5,3748.2,1.29789222]
[1717052466527,2.17744459,3749.5,3747.5,1.60106]
[1717052466528,6.07933681,3749.5,3747.5,1.60106]
[1717052466772,1.05453905,3749.4,3747.8,1.29789222]
[1717052466976,0.57721459,3749.5,3747.8,1.29789222]
[1717052467142,6.17301459,3749.6,3747.8,1.29789222]
[1717052467342,3.57721459,3749.5,3747.8,1.29789222]
[1717052467593,0.57721459,3749.4,3747.8,1.29789222]
[1717052467770,0.61730146,3749.3,3747.8,1.29789222]
[1717052467991,1.60034,3749.2,3747.3,1.60114]
[1717052468155,1.60048,3748.9,3747.6,1.60098]
[1717052468359,1.60048,3748.9,3747.6,2.89887222]
[1717052469102,1.60048,3748.9,3746.7,2.7892768]
[1717052469103,3.57728677,3749.0,3747.9,1.60088]
[1717052469409,0.57728677,3748.9,3748.0,1.58776944]
[1717052469684,0.61730146,3749.3,3748.0,1.58776944]
[1717052469685,1.19458823,3749.3,3748.0,1.58776944]
[1717052469857,0.57728677,3749.3,3748.1,1.60077]
[1717052470059,0.57728677,3749.3,3748.0,1.58776944]
[1717052470060,0.57728677,3749.3,3748.4,1.60068]
[1717052470279,0.57728677,3749.4,3748.5,1.29789222]
[1717052470496,0.57728677,3749.9,3748.5,1.29789222]
[1717052472109,0.57728677,3749.9,3748.6,1.60059]
[1717052472310,0.57728677,3749.9,3748.7,1.58774044]
[1717052473175,0.57728677,3749.9,3748.8,0.05334137]
[1717052473887,0.57728677,3749.9,3748.7,1.58774044]
[1717052474258,0.57728677,3749.9,3748.8,1.60047]
[1717052474461,0.57728677,3749.9,3748.9,1.29789222]
[1717052474785,1.59995,3750.1,3749.0,0.31882104]
[1717052474991,1.59995,3750.1,3749.0,1.61671326]
[1717052475172,1.59995,3750.1,3749.0,0.31882104]
[1717052475374,0.55,3750.0,3748.8,1.60047]
[1717052475680,0.55,3750.0,3748.2,1.60074]
[1717052475681,1.60017,3749.6,3748.2,1.60074]
[1717052475860,0.57728677,3749.6,3748.4,1.60067]
[1717052476204,0.57728677,3749.6,3748.0,0.28987722]
[1717052476205,3.57728677,3750.0,3748.7,1.60052]
[1717052476371,0.57728677,3749.9,3748.8,3.21923344]
[1717052477387,7.28261,3749.8,3748.0,1.89069722]
[1717052477702,1.60017,3749.6,3748.0,1.89069722]
[1717052477903,2.604,3749.3,3748.0,1.89069722]
[1717052478106,3.0,3749.2,3748.0,1.89069722]
[1717052478306,0.57709918,3749.1,3748.0,1.89069722]
[1717052478504,0.57709918,3749.1,3748.3,1.60069]
[1717052478661,1.60017,3749.6,3748.4,1.29789222]
[1717052478867,2.17735694,3749.6,3748.4,1.29789222]
[1717052479262,0.57718694,3749.6,3748.5,1.60061]
[1717052479470,0.57718694,3749.6,3748.6,1.29789222]
[1717052479665,0.57718694,3749.9,3748.7,0.28985022]
[1717052479870,0.57718694,3749.9,3748.7,1.58774244]
[1717052481080,0.57718694,3749.9,3748.8,1.29789222]
[1717052481283,0.57718694,3749.9,3749.2,1.60032]
[1717052481500,14.985,3751.1,3749.5,1.7468]
[1717052481501,0.57710298,3750.5,3749.5,1.7468]
[1717052481699,0.57710298,3751.0,3749.6,1.29789222]
[1717052482216,2.17653298,3751.4,3749.6,1.29789222]
[1717052482409,2.17635453,3751.4,3749.6,1.29789222]
[1717052482613,2.17635453,3751.4,3749.7,0.30446922]
[1717052482820,2.17635453,3751.4,3749.8,1.29789222]
[1717052483124,2.17635453,3751.4,3749.9,1.60004]
[1717052483334,2.17635453,3751.4,3750.0,1.29789222]
[1717052483491,5.17635453,3751.4,3750.0,1.29789222]
[1717052483823,1.59949,3751.2,3750.0,1.29789222]
[1717052484022,5.17644289,3751.2,3750.0,1.29789222]
[1717052484176,0.57695289,3751.1,3750.0,1.29789222]
[1717052484377,1.59958,3751.0,3749.7,0.30446922]
[1717052484572,1.59966,3750.8,3749.5,1.7468]
[1717052484840,2.6256,3749.8,3747.5,0.55283487]
[1717052485113,2.604,3749.6,3747.6,0.05335839]
[1717052485288,1.60046,3749.0,3747.4,1.60108]
[1717052485495,1.60046,3749.0,3746.8,0.55283487]
[1717052485496,1.60061,3748.6,3746.8,1.60134]
[1717052485695,2.5739,3748.9,3746.2,4.30051]
[1717052485696,1.60081,3748.2,3746.2,4.30051]
[1717052486035,0.55,3748.1,3746.2,4.30051]
[1717052486225,1.60091,3747.9,3746.3,0.430051]
[1717052486528,0.55,3747.8,3746.3,0.430051]
[1717052486726,3.0,3748.1,3746.4,1.60152]
[1717052486909,3.0,3748.3,3747.4,1.60108]
[1717052487233,1.60058,3748.7,3747.1,2.5812]
[1717052487384,1.60067,3748.5,3747.2,0.25812]
[1717052487805,0.55,3748.4,3747.2,0.25812]
[1717052488124,1.60073,3748.3,3746.7,1.60137]
[1717052488417,7.20473,3748.3,3746.7,1.60137]
[1717052488655,1.12727826,3748.2,3746.7,1.60137]
[1717052488783,4.12727826,3748.2,3746.7,1.60137]
[1717052488979,3.55,3748.2,3746.7,1.60137]
[1717052489185,3.55,3748.2,3746.9,1.6013]
[1717052489186,0.5774243,3748.1,3746.9,1.6013]
[1717052489483,2.604,3748.8,3746.9,1.6013]
[1717052489680,3.0,3748.7,3746.9,1.6013]
[1717052489884,0.5774135,3748.6,3746.9,1.6013]
[1717052490119,0.5774135,3748.6,3747.1,1.60121]
[1717052491420,4.60046,3749.0,3747.1,4.28711]
[1717052491584,0.57731507,3748.9,3747.1,4.28711]
[1717052492438,0.57731507,3748.9,3747.3,1.60112]
[1717052492632,0.57731507,3748.9,3747.4,1.29789222]
[1717052492838,1.60058,3748.7,3747.3,1.60112]
[1717052493142,0.55,3748.6,3747.3,1.60112]
[1717052493343,1.60065,3748.5,3747.0,0.2019557]
[1717052493555,1.60082,3748.1,3747.0,0.2019557]
[1717052495360,0.57731507,3748.2,3747.1,1.29789222]
[1717052495649,0.57731507,3748.2,3747.2,0.14998479]
[1717052496468,3.0,3748.3,3747.2,0.14998479]
[1717052496771,3.0,3748.3,3747.3,2.89901222]
[1717052496910,3.0,3748.6,3747.3,2.89901222]
[1717052497106,3.0,3748.6,3747.3,1.60112]
[1717052497309,0.57730447,3748.5,3747.4,0.17511048]
[1717052497809,0.57730447,3748.5,3747.3,1.60112]
[1717052498006,1.60076,3748.3,3746.7,1.60139]
[1717052498212,2.604,3747.9,3746.0,2.7621]
[1717052498526,2.604,3747.9,3746.1,1.29789222]
[1717052498527,0.55,3747.8,3746.1,1.29789222]
[1717052498737,1.60104,3747.6,3746.2,0.56617222]
[1717052498946,0.55,3747.5,3746.2,0.56617222]
[1717052499539,1.12730447,3747.5,3746.2,0.56617222]
[1717052499741,4.12730447,3747.5,3746.2,0.56617222]
[1717052500048,3.0,3747.5,3746.3,1.29789222]
[1717052500354,1.60104,3747.6,3746.4,0.18640644]
[1717052500524,0.57751062,3747.7,3746.5,1.29789222]
[1717052500735,3.0,3747.8,3746.7,1.6014]
[1717052500934,3.0,3748.1,3746.8,1.29789222]
[1717052501136,3.0,3748.1,3746.9,0.28992922]
[1717052501461,3.0,3748.1,3747.0,1.29789222]
[1717052501660,3.0,3748.1,3746.9,0.28992922]
[1717052502715,0.57746229,3748.0,3746.9,0.28992922]
[1717052504369,2.15093,3747.9,3746.2,0.56617222]
[1717052504545,5.15093,3747.9,3746.3,1.29789222]
[1717052504873,0.5774864,3747.8,3746.3,1.29789222]
[1717052505070,0.55,3747.7,3746.3,1.29789222]
[1717052505625,0.55,3747.8,3746.3,1.29789222]
[1717052505824,0.55,3747.8,3746.4,0.34656944]
[1717052506097,0.55,3747.8,3746.4,1.64446166]
[1717052506236,1.60098,3747.7,3746.4,0.34656944]
[1717052506430,0.55,3747.6,3746.4,0.34656944]
[1717052506629,0.55,3747.6,3746.1,1.60163]
[1717052506897,1.60107,3747.5,3746.1,2.89952222]
[1717052507171,0.55,3747.4,3746.1,2.89952222]
[1717052507358,4.20517,3747.3,3745.5,3.3153]
[1717052507559,1.6013,3747.0,3745.5,3.3153]
[1717052507749,1.60144,3746.7,3745.5,2.1992]
[1717052507944,1.60151,3746.5,3744.9,1.60217]
[1717052508203,1.60151,3746.5,3745.0,1.29789222]
[1717052508471,0.55,3746.4,3745.0,1.29789222]
[1717052509759,0.55,3746.4,3743.7,1.60265]
[1717052509760,1.60197,3745.4,3743.7,1.60265]
[1717052509961,1.60197,3745.4,3743.1,1.60291]
[1717052509962,1.60215,3745.0,3743.1,1.60291]
[1717052510145,2.604,3745.1,3743.1,1.60291]
[1717052510146,1.60223,3744.8,3743.1,1.60291]
[1717052510473,0.55,3744.7,3743.1,1.60291]
[1717052511332,4.60223,3744.8,3743.3,1.60285]
[1717052511534,1.60223,3744.8,3743.4,0.29007422]
[1717052511775,0.55,3744.7,3743.4,0.29007422]
[1717052512895,3.0,3745.0,3743.4,0.29007422]
[1717052512896,3.0,3745.0,3743.5,1.60277]
[1717052514371,3.0,3745.0,3743.6,1.29789222]
[1717052514773,0.55,3744.9,3743.6,1.29789222]
[1717052515091,0.55,3744.9,3743.7,0.31907364]
[1717052516460,3.0,3745.0,3743.7,0.31907364]
[1717052517747,3.0,3745.0,3743.8,1.29789222]
[1717052519093,0.55,3744.9,3743.7,0.31907364]
[1717052519804,1.60223,3744.8,3743.7,0.31907364]
[1717052520097,0.55,3744.7,3743.5,1.60277]
[1717052520262,1.60231,3744.6,3743.5,1.60277]
[1717052520607,0.55,3744.5,3743.5,1.60277]
[1717052522563,6.58939222,3744.4,3741.5,2.5135]
[1717052522804,1.60266,3743.8,3742.0,1.6034]
[1717052523165,4.60266,3743.8,3742.0,1.6034]
[1717052523363,1.60276,3743.6,3742.0,1.6034]
[1717052524635,1.60276,3743.6,3742.2,1.6033]
[1717052524911,1.60276,3743.6,3742.3,1.29789222]
[1717052525062,1.60276,3743.6,3742.4,0.54946922]
[1717052525263,1.60276,3743.6,3742.5,1.29789222]
[1717052527071,1.60276,3743.6,3742.4,0.54946922]
[1717052527230,1.60276,3743.6,3742.4,1.84736144]
[1717052527581,1.60276,3743.6,3742.4,0.54946922]
[1717052527906,0.55,3743.5,3742.4,0.54946922]